bitfinex-derivatives/quotes_SOLF0:USTF0_20250924
["timestamp","ask_amount","ask_price","bid_price","bid_amount"]
[1758725867976,7.55,215.69,215.61,4.172]
[1758725868176,7.55,215.69,215.58,7.68]
[1758725868379,7.55,215.69,215.62,4.1717]
[1758725869171,86.1,215.7,215.62,4.1717]
[1758725869374,86.1,215.7,215.58,72.588]
[1758725869375,86.1,215.7,215.59,4.1723]
[1758725869575,86.1,215.7,215.58,7.68]
[1758725869781,4.1702,215.71,215.58,7.68]
[1758725869977,7.55,215.74,215.63,7.68]
[1758725870275,341.529,215.78,215.64,64.8901]
[1758725870474,341.529,215.78,215.7,4.1703]
[1758725870680,337.36,215.78,215.7,4.1703]
[1758725870870,337.36,215.78,215.68,7.68]
[1758725871270,337.36,215.78,215.72,4.17]
[1758725871675,7.55,215.84,215.71,7.68]
[1758725872072,4.1679,215.83,215.71,7.68]
[1758725872686,4.1679,215.83,215.71,11.8501]
[1758725873181,4.1679,215.83,215.71,7.68]
[1758725874387,4.1679,215.83,215.73,4.1697]
[1758725875289,4.167,215.88,215.76,7.7]
[1758725875475,120.64,215.87,215.76,7.7]
[1758725875875,4.167,215.88,215.76,7.7]
[1758725876284,120.62,215.87,215.76,7.7]
[1758725877488,4.167,215.88,215.76,7.7]
[1758725877786,120.62,215.87,215.76,7.7]
[1758725877987,120.62,215.87,215.77,4.1689]
[1758725878481,7.76,215.89,215.77,4.1689]
[1758725878687,120.6,215.88,215.77,4.1689]
[1758725878982,4.1671,215.87,215.76,7.7]
[1758725879185,120.6,215.88,215.76,7.7]
[1758725879587,124.767,215.88,215.76,11.8691]
[1758725880584,120.6,215.88,215.78,4.1688]
[1758725880791,7.76,215.89,215.79,7.6]
[1758725880986,7.76,215.89,215.78,64.8485]
[1758725880987,120.58,215.9,215.82,72.4355]
[1758725881187,7.35,215.94,215.84,7.6]
[1758725881392,120.58,215.95,215.84,7.6]
[1758725882187,120.58,215.96,215.87,4.167]
[1758725883486,124.7454,215.96,215.84,7.6]
[1758725883687,120.58,215.96,215.84,7.6]
[1758725884089,120.58,215.96,215.85,4.1674]
[1758725885991,120.58,215.96,215.87,4.167]
[1758725886292,7.35,215.95,215.84,7.6]
[1758725886487,7.35,215.95,215.84,11.7676]
[1758725887497,7.35,215.93,215.79,7.6]
[1758725889194,4.1663,215.92,215.8,4.1682]
[1758725889696,5.20866027,215.95,215.79,7.6]
[1758725889697,72.1512,215.94,215.79,7.6]
[1758725889898,7.35,215.89,215.79,7.6]
[1758725890492,7.35,215.87,215.78,4.1686]
[1758725890699,7.35,215.87,215.74,90.14866027]
[1758725891201,7.35,215.87,215.69,7.6]
[1758725891202,64.8253,215.86,215.69,7.6]
[1758725891401,5.20866027,215.87,215.69,7.6]
[1758725891402,7.35,215.84,215.69,7.6]
[1758725891900,7.35,215.84,215.68,5.20866027]
[1758725891901,72.2,215.83,215.71,7.6]
[1758725892096,7.35,215.84,215.75,11.7692]
[1758725892401,7.35,215.84,215.75,7.6]
[1758725892597,7.35,215.84,215.75,11.7693]
[1758725893706,7.35,215.84,215.75,7.6]
[1758725893902,7.35,215.84,215.73,4.1697]
[1758725894598,7.35,215.84,215.71,7.6]
[1758725895901,11.5176,215.84,215.72,4.1698]
[1758725896103,7.35,215.84,215.71,7.6]
[1758725896603,4.1682,215.81,215.71,7.6]
[1758725896804,7.35,215.8,215.71,7.6]
[1758725898698,4.1686,215.79,215.71,7.6]
[1758725899000,4.1686,215.79,215.62,186.07206468]
[1758725899001,127.79,215.8,215.66,7.6]
[1758725899396,127.79,215.8,215.7,4.1702]
[1758725901097,131.9586,215.8,215.7,4.1702]
[1758725903301,127.79,215.8,215.69,7.6]
[1758725905306,127.79,215.8,215.72,4.1699]
[1758725905504,127.79,215.8,215.69,7.6]
[1758725905806,127.77,215.8,215.69,7.6]
[1758725906107,127.77,215.8,215.73,4.1696]
[1758725906308,7.35,215.8,215.73,4.1696]
[1758725906511,7.35,215.8,215.71,4.1701]
[1758725906809,11.5185,215.8,215.69,7.6]
[1758725907006,7.35,215.8,215.73,4.1697]
[1758725907404,7.35,215.8,215.71,64.8682]
[1758725907605,7.47,215.88,215.78,4.1686]
[1758725908004,7.47,215.88,215.77,7.44]
[1758725910809,4.1671,215.87,215.77,7.44]
[1758725911309,120.38,215.86,215.77,7.44]
[1758725911508,124.5474,215.86,215.78,4.1686]
[1758725911709,120.38,215.86,215.77,7.44]
[1758725912113,124.5474,215.86,215.77,7.44]
[1758725912316,120.38,215.86,215.77,7.44]
[1758725912706,127.83,215.88,215.77,7.44]
[1758725913103,4.1672,215.87,215.81,4.1682]
[1758725913311,4.1672,215.87,215.77,7.44]
[1758725913915,4.1674,215.86,215.79,4.1685]
[1758725914402,4.1676,215.85,215.77,11.6089]
[1758725914601,4.1676,215.85,215.79,2.11585917]
[1758725914804,127.83,215.88,215.79,2.11585917]
[1758725915007,127.83,215.88,215.81,2.11585917]
[1758725915812,127.81,215.88,215.81,2.11585917]
[1758725916014,7.47,215.88,215.81,2.11585917]
[1758725916215,7.47,215.93,215.83,9.55585917]
[1758725916513,120.32,215.92,215.83,9.55585917]
[1758725917311,7.47,215.91,215.83,2.11585917]
[1758725917816,7.47,215.91,215.79,7.44]
[1758725918014,7.47,215.91,215.82,2.11585917]
[1758725918819,2.11585917,215.9,215.8,6.28415917]
[1758725919017,2.11585917,215.9,215.68,64.8762]
[1758725919018,2.11585917,215.84,215.7,7.44]
[1758725919218,51.43,215.83,215.72,2.11585917]
[1758725919419,51.43,215.83,215.76,2.11585917]
[1758725919716,7.47,215.83,215.76,2.11585917]
[1758725920107,7.47,215.83,215.76,6.28485917]
[1758725920913,11.638,215.83,215.76,2.11585917]
[1758725921122,7.47,215.83,215.73,9.55585917]
[1758725921524,4.1685,215.8,215.73,7.44]
[1758725921725,2.11585917,215.82,215.73,7.44]
[1758725922130,7.47,215.81,215.72,6.28565917]
[1758725922324,7.47,215.81,215.72,4.1698]
[1758725922717,7.47,215.81,215.72,6.28565917]
[1758725922925,7.47,215.81,215.73,4.1696]
[1758725923129,7.47,215.81,215.73,2.11585917]
[1758725923629,7.47,215.81,215.71,2.11585917]
[1758725924530,7.47,215.81,215.73,2.11585917]
[1758725925732,7.47,215.81,215.72,2.11585917]
[1758725926129,7.47,215.81,215.72,6.28565917]
[1758725926836,7.47,215.81,215.72,2.11585917]
[1758725927532,7.47,215.81,215.71,7.44]
[1758725927735,7.47,215.81,215.72,2.11585917]
[1758725928336,7.47,215.81,215.72,6.28565917]
[1758725928736,7.47,215.81,215.72,2.11585917]
[1758725929332,9.58585917,215.81,215.71,11.6101]
[1758725929532,7.47,215.8,215.71,13.72595917]
[1758725930131,4.1688,215.78,215.71,9.55585917]
[1758725930437,4.1688,215.78,215.71,7.44]
[1758725930640,2.11585917,215.79,215.71,7.44]
[1758725931334,2.11585917,215.79,215.62,103.97836468]
[1758725931335,7.47,215.83,215.64,7.44]
[1758725931641,2.11585917,215.72,215.64,7.44]
[1758725931938,2.11585917,215.76,215.67,2.11585917]
[1758725932233,2.11585917,215.77,215.68,7.44]
[1758725932438,77.99,215.78,215.71,4.1701]
[1758725932439,7.47,215.78,215.71,4.1701]
[1758725932743,7.47,215.78,215.71,6.28595917]
[1758725933042,7.47,215.78,215.69,4.1705]
[1758725933333,7.47,215.78,215.68,9.55585917]
[1758725933636,2.11585917,215.81,215.71,7.44]
[1758725933833,2.11585917,215.81,215.72,2.11585917]
[1758725934139,9.58585917,215.82,215.72,2.11585917]
[1758725934436,13.75395917,215.82,215.73,4.1696]
[1758725934935,4.1677,215.84,215.75,7.15]
[1758725935436,7.54,215.86,215.76,2.11585917]
[1758725935645,2.11585917,215.85,215.77,7.15]
[1758725935938,7.54,215.84,215.75,4.1692]
[1758725936140,7.54,215.84,215.74,9.26585917]
[1758725936141,2.11585917,215.86,215.77,7.15]
[1758725936340,7.54,215.88,215.78,2.11585917]
[1758725936528,9.65585917,215.88,215.79,7.15]
[1758725936934,13.82275917,215.88,215.79,7.15]
[1758725937534,13.82275917,215.88,215.79,9.26585917]
[1758725938137,13.82275917,215.88,215.8,4.1684]
[1758725938334,11.7069,215.88,215.8,4.1684]
[1758725939038,7.54,215.88,215.8,4.1684]
[1758725939240,343.74215917,215.91,215.82,11.3179]
[1758725939836,4.1667,215.89,215.82,7.15]
[1758725940037,11.7467,215.89,215.82,7.15]
[1758725940246,2.11585917,215.88,215.78,9.96585917]
[1758725940844,4.1672,215.87,215.78,14.13445917]
[1758725941147,2.11585917,215.88,215.78,9.96585917]
[1758725941845,2.11585917,215.83,215.74,7.85]
[1758725942636,6.28375917,215.83,215.74,7.85]
[1758725943037,7.58,215.82,215.74,7.85]
[1758725944245,11.7473,215.86,215.76,2.11585917]
[1758725944452,120.1,215.85,215.77,7.85]
[1758725945252,120.1,215.85,215.79,4.1685]
[1758725945847,9.69585917,215.86,215.79,4.1685]
[1758725945848,129.77585917,215.86,215.79,4.1685]
[1758725946244,9.69585917,215.86,215.79,4.1685]
[1758725946445,129.77585917,215.86,215.79,4.1685]
[1758725946644,9.69585917,215.86,215.79,4.1685]
[1758725947249,7.58,215.82,215.73,12.0196]
[1758725947648,7.58,215.82,215.74,4.1694]
[1758725947943,3.35839919,215.81,215.74,4.1694]
[1758725948148,3.35839919,215.8,215.74,4.1694]
[1758725948342,3.35839919,215.79,215.75,7.85]
[1758725948546,3.35839919,215.78,215.74,4.1694]
[1758725948747,7.58,215.82,215.74,12.0194]
[1758725949053,3.35851181,215.81,215.74,12.0194]
[1758725949251,3.35851181,215.8,215.77,7.85]
[1758725949555,14.91780708,215.9,215.78,7.85]
[1758725950252,9.69585917,215.9,215.79,2.11585917]
[1758725950646,7.58,215.9,215.78,7.85]
[1758725950847,12.80194791,215.9,215.78,7.85]
[1758725951047,4.1673,215.86,215.78,12.0186]
[1758725951848,7.58,215.85,215.78,12.0186]
[1758725952155,127.6,215.85,215.75,4.1692]
[1758725952342,131.7676,215.85,215.75,4.1692]
[1758725952549,131.7676,215.85,215.74,7.85]
[1758725952550,127.6,215.85,215.74,7.85]
[1758725953252,12.80194791,215.82,215.69,7.85]
[1758725953561,7.58,215.8,215.69,7.85]
[1758725953855,10.88598464,215.8,215.69,7.85]
[1758725954354,4.1687,215.79,215.7,4.1702]
[1758725954547,4.1687,215.79,215.69,7.85]
[1758725954548,127.58,215.8,215.69,7.85]
[1758725954748,127.58,215.8,215.71,4.1701]
[1758725955845,127.58,215.8,215.64,68.19418464]
[1758725955846,3.30598464,215.79,215.62,402.8660738]
[1758725956046,7.58,215.78,215.63,72.7435]
[1758725956251,3.30598464,215.79,215.63,72.7435]
[1758725956459,7.58,215.78,215.63,72.7435]
[1758725956854,7.58,215.78,215.63,64.8935]
[1758725957061,7.58,215.78,215.64,7.85]
[1758725957361,4.1693,215.76,215.67,4.1709]
[1758725958359,7.58,215.75,215.67,4.1709]
[1758725958654,7.58,215.73,215.64,7.85]
[1758725959158,89.56598464,215.73,215.64,7.85]
[1758725959957,7.58,215.73,215.64,7.85]
[1758725960156,119.98,215.72,215.64,7.85]
[1758725960360,7.58,215.71,215.59,7.85]
[1758725961361,11.7503,215.71,215.61,4.1719]
[1758725961562,3.34058775,215.7,215.61,4.1719]
[1758725961766,3.34058775,215.69,215.59,7.85]
[1758725962060,3.34058775,215.68,215.59,7.85]
[1758725962367,7.58,215.66,215.59,7.85]
[1758725962562,3.34058775,215.65,215.59,7.85]
[1758725962862,7.58,215.66,215.62,4.1718]
[1758725963062,3.34023001,215.65,215.62,4.1718]
[1758725963260,7.58,215.66,215.62,4.1718]
[1758725964764,7.58,215.66,215.6,7.33]
[1758725966465,7.58,215.66,215.61,11.5019]
[1758725967867,7.58,215.66,215.56,64.9137]
[1758725967868,4.1706,215.69,215.59,4.1724]
[1758725968068,11.08420125,215.68,215.59,7.33]
[1758725968266,3.33420125,215.67,215.59,7.33]
[1758725968565,7.75,215.68,215.59,7.33]
[1758725968756,3.33326448,215.67,215.6,4.1721]
[1758725968959,7.75,215.68,215.6,4.1721]
[1758725969161,3.33326691,215.67,215.6,4.1721]
[1758725969355,7.75,215.68,215.6,4.1721]
[1758725969562,3.33226022,215.67,215.59,7.33]
[1758725969763,3.33233153,215.66,215.59,7.33]
[1758725969969,7.75,215.68,215.59,7.33]
[1758725970267,3.33227806,215.67,215.59,11.5023]
[1758725970470,7.75,215.68,215.59,7.33]
[1758725972069,7.75,215.73,215.63,7.33]
[1758725972370,3.33016695,215.72,215.63,7.33]
[1758725972660,7.75,215.73,215.63,7.33]
[1758725972870,3.32945339,215.72,215.63,7.33]
[1758725973164,7.75,215.73,215.63,7.33]
[1758725973359,3.32954789,215.72,215.65,4.1711]
[1758725973559,7.75,215.73,215.63,7.33]
[1758725973865,7.75,215.71,215.63,7.33]
[1758725974065,3.32921222,215.7,215.63,7.33]
[1758725974262,7.49961222,215.7,215.62,4.1717]
[1758725974466,7.75,215.69,215.59,7.33]
[1758725974763,7.75,215.69,215.6,4.1722]
[1758725974764,4.1708,215.68,215.6,4.1722]
[1758725974967,7.75,215.67,215.59,7.33]
[1758725976571,7.75,215.67,215.6,4.1721]
[1758725977171,7.75,215.67,215.59,7.33]
[1758725977768,7.75,215.67,215.6,4.1722]
[1758725978971,7.75,215.67,215.59,7.33]
[1758725979770,11.921,215.67,215.59,11.5023]
[1758725980775,7.75,215.67,215.6,4.1721]
[1758725981169,7.75,215.67,215.59,7.33]
[1758725981471,52.64,215.71,215.59,7.33]
[1758725981472,7.75,215.71,215.59,7.33]
[1758725981672,3.37253902,215.7,215.59,7.33]
[1758725981878,3.37253902,215.69,215.59,7.33]
[1758725982171,7.75,215.71,215.59,7.33]
[1758725982368,3.37262797,215.7,215.59,7.33]
[1758725982571,3.37262797,215.69,215.63,4.1715]
[1758725982772,7.75,215.71,215.63,4.1715]
[1758725982966,3.37318056,215.7,215.59,7.33]
[1758725983171,3.37318056,215.69,215.61,4.172]
[1758725983371,7.75,215.71,215.61,4.172]
[1758725983561,3.37409419,215.7,215.59,7.33]
[1758725983770,3.37409419,215.69,215.63,4.1715]
[1758725983968,7.75,215.71,215.63,4.1715]
[1758725984168,3.37401833,215.7,215.63,4.1715]
[1758725984368,3.37401833,215.69,215.63,4.1715]
[1758725984677,7.75,215.71,215.64,11.5013]
[1758725984971,3.37554036,215.7,215.64,11.5013]
[1758725985178,7.75,215.68,215.64,11.5013]
[1758725985381,7.75,215.71,215.64,4.1713]
[1758725985674,3.37574138,215.7,215.64,4.1713]
[1758725985870,3.37574138,215.69,215.61,64.8986]
[1758725986070,127.53,215.71,215.62,7.33]
[1758725986277,3.37669967,215.7,215.62,7.33]
[1758725986573,127.53,215.71,215.62,7.33]
[1758725986774,11.12669783,215.7,215.65,11.5011]
[1758725986976,7.75,215.7,215.65,11.5011]
[1758725987170,7.75,215.71,215.65,11.5011]
[1758725987363,123.08598464,215.72,215.66,4.171]
[1758725987364,7.75,215.69,215.66,4.171]
[1758725987567,119.76,215.7,215.58,7.33]
[1758725987768,6.68338506,215.69,215.61,4.172]
[1758725987969,130.88740042,215.68,215.6,64.9016]
[1758725988165,3.37740042,215.67,215.6,64.9016]
[1758725988880,3.37740042,215.67,215.58,72.2376]
[1758725989766,7.75,215.66,215.64,4.1713]
[1758725990668,5.22194791,215.75,215.6,64.9023]
[1758725990876,11.05598464,215.73,215.63,7.33]
[1758725991077,3.37978034,215.72,215.63,7.33]
[1758725991380,11.05598464,215.73,215.63,7.33]
[1758725991381,3.37978034,215.71,215.63,7.33]
[1758725991580,3.37978034,215.7,215.63,7.33]
[1758725991774,11.12978034,215.69,215.65,4.1712]
[1758725991975,3.37978034,215.68,215.65,4.1712]
[1758725992778,3.37978034,215.68,215.63,7.33]
[1758725993382,3.37978034,215.68,215.64,7.33]
[1758725993975,3.37978034,215.68,215.63,7.67]
[1758725994179,3.37978034,215.68,215.61,7.67]
[1758725994372,3.37978034,215.68,215.66,4.1709]
[1758725994577,7.69,215.73,215.63,7.67]
[1758725994880,3.38432561,215.72,215.67,4.1707]
[1758725995080,62.77,215.73,215.63,7.67]
[1758725995081,7.69,215.7,215.63,7.67]
[1758725995283,3.38432561,215.69,215.63,7.67]
[1758725995683,3.38432561,215.69,215.65,4.1712]
[1758725995882,11.07432561,215.69,215.65,4.1712]
[1758725996085,3.38432561,215.68,215.65,4.1712]
[1758725996882,11.07432561,215.68,215.65,4.1712]
[1758725997083,3.38432561,215.67,215.65,4.1712]
[1758725998684,118.33194791,215.76,215.66,7.67]
[1758725998980,3.39497621,215.75,215.66,7.67]
[1758725999187,3.39497621,215.74,215.66,7.67]
[1758725999379,3.39497621,215.73,215.66,7.67]
[1758725999581,3.39497621,215.72,215.66,7.67]
[1758725999883,3.39497621,215.71,215.65,64.8872]
[1758726000083,3.39497621,215.7,215.69,4.1705]
[1758726000279,3.39497621,215.7,215.65,64.8872]
[1758726000482,5.22194791,215.78,215.66,10.87598464]
[1758726000680,5.22194791,215.78,215.7,7.57]
[1758726000880,5.22194791,215.79,215.7,7.57]
[1758726001079,5.22194791,215.82,215.74,64.8599]
[1758726001284,7.66,215.85,215.77,7.57]
[1758726001783,12.88194791,215.85,215.72,3.30598464]
[1758726001983,7.66,215.83,215.73,7.57]
[1758726002290,77.32,215.83,215.74,7.57]
[1758726002587,7.66,215.87,215.76,10.87598464]
[1758726003085,7.66,215.87,215.8,4.1682]
[1758726003391,5.22194791,215.91,215.8,64.8421]
[1758726003579,119.58,215.91,215.81,7.57]
[1758726003784,7.66,215.9,215.81,7.57]
[1758726004084,7.66,215.9,215.81,11.738]
[1758726004289,7.66,215.9,215.81,7.57]
[1758726004981,5.22194791,215.89,215.76,7.57]
[1758726005188,7.66,215.85,215.76,7.57]
[1758726005486,10.96598464,215.85,215.73,7.57]
[1758726005685,7.66,215.85,215.73,7.57]
[1758726005886,10.96598464,215.85,215.75,4.1693]
[1758726006088,10.96598464,215.85,215.73,64.8621]
[1758726006277,7.66,215.85,215.75,7.57]
[1758726006587,7.66,215.85,215.79,4.1686]
[1758726006781,7.47278464,215.89,215.79,4.1686]
[1758726006984,119.54,215.88,215.81,4.1682]
[1758726007182,10.96598464,215.89,215.81,4.1682]
[1758726007387,10.96598464,215.89,215.78,72.4164]
[1758726007577,7.66,215.89,215.81,7.57]
[1758726008487,98.78598464,215.91,215.81,7.57]
[1758726008689,7.66,215.9,215.81,7.57]
[1758726008992,7.66,215.9,215.74,64.8601]
[1758726008993,3.30598464,215.88,215.75,7.57]
[1758726009194,3.30598464,215.88,215.77,7.57]
[1758726009783,11.827,215.87,215.77,7.57]
[1758726010179,3.30598464,215.86,215.77,7.57]
[1758726010386,91.0,215.89,215.79,7.57]
[1758726010585,93.11552477,215.89,215.79,7.57]
[1758726011088,9.77552477,215.89,215.79,7.57]
[1758726011487,9.77552477,215.89,215.81,4.1682]
[1758726011691,9.77552477,215.89,215.79,7.57]
[1758726011996,9.77552477,215.89,215.8,4.1684]
[1758726012290,9.77552477,215.89,215.79,7.57]
[1758726012484,3.35281213,215.88,215.79,7.57]
[1758726012686,3.35281213,215.87,215.79,7.57]
[1758726012887,3.35281213,215.86,215.79,72.4147]
[1758726013086,2.11552477,215.89,215.8,7.57]
[1758726013288,3.35262385,215.88,215.8,7.57]
[1758726013495,3.35262385,215.87,215.83,4.1678]
[1758726013685,2.11552477,215.89,215.81,7.57]
[1758726013887,3.35169538,215.88,215.81,7.57]
[1758726014180,3.35169538,215.87,215.81,7.57]
[1758726014384,2.11552477,215.89,215.81,7.57]
[1758726014584,3.35081045,215.88,215.81,7.57]
[1758726014785,2.11552477,215.86,215.77,11.7389]
[1758726014991,3.35103309,215.85,215.78,2.11552477]
[1758726015193,3.35115352,215.84,215.79,7.57]
[1758726015393,2.11552477,215.84,215.71,120.3484]
[1758726015693,5.46665102,215.83,215.75,7.57]
[1758726015890,2.11552477,215.86,215.76,2.11552477]
[1758726016194,3.35112815,215.85,215.79,66.96052477]
[1758726016402,7.66,215.9,215.84,4.1676]
[1758726016594,3.34919368,215.89,215.85,7.57]
[1758726016790,3.34919368,215.88,215.81,9.68552477]
[1758726017094,3.34956922,215.87,215.81,7.57]
[1758726017395,11.00972682,215.86,215.81,7.57]
[1758726017587,3.34972682,215.85,215.81,7.57]
[1758726017782,7.66,215.86,215.82,11.738]
[1758726017987,2.11552477,215.88,215.77,66.96552477]
[1758726017988,2.11552477,215.9,215.8,7.57]
[1758726018189,3.34918318,215.89,215.8,7.57]
[1758726018384,5.46470795,215.88,215.8,7.57]
[1758726018590,3.34918318,215.87,215.8,7.57]
[1758726018782,3.34918318,215.86,215.8,7.57]
[1758726018989,2.11552477,215.88,215.8,7.57]
[1758726019186,3.34856109,215.87,215.83,4.1678]
[1758726019392,2.11552477,215.88,215.83,11.7378]
[1758726019592,3.34790156,215.87,215.83,11.7378]
[1758726019790,2.11552477,215.88,215.84,4.1674]
[1758726019995,3.34790156,215.87,215.84,11.7374]
[1758726020190,2.11552477,215.9,215.84,11.7374]
[1758726020387,9.77552477,215.88,215.84,7.57]
[1758726020586,3.34778212,215.87,215.84,7.57]
[1758726020887,2.11552477,215.88,215.84,7.57]
[1758726021089,3.34758768,215.87,215.84,7.57]
[1758726021290,2.11552477,215.88,215.84,7.57]
[1758726021698,2.11552477,215.9,215.82,7.57]
[1758726021889,3.34633395,215.89,215.82,7.57]
[1758726022092,2.11552477,215.9,215.82,7.57]
[1758726022285,3.34657287,215.89,215.82,7.57]
[1758726022489,2.11552477,215.9,215.82,7.57]
[1758726022684,3.34621475,215.89,215.82,7.57]
[1758726022890,2.11552477,215.9,215.82,7.57]
[1758726023091,3.34621415,215.89,215.83,4.1677]
[1758726023292,2.11552477,215.9,215.83,4.1677]
[1758726023488,9.77552477,215.88,215.82,7.57]
[1758726023695,2.11552477,215.86,215.8,4.1682]
[1758726023999,7.33,215.84,215.8,4.1682]
[1758726024191,7.33,215.84,215.78,7.57]
[1758726024901,7.33,215.84,215.8,4.1683]
[1758726025196,7.33,215.84,215.8,11.8483]
[1758726026101,7.33,215.85,215.8,7.68]
[1758726026309,2.11552477,215.9,215.82,7.68]
[1758726026601,10.67717026,215.89,215.82,7.68]
[1758726026906,3.34717026,215.88,215.82,7.68]
[1758726027094,3.34717026,215.88,215.85,4.1673]
[1758726027500,3.34717026,215.88,215.82,7.68]
[1758726027903,12.79269503,215.88,215.82,7.68]
[1758726028203,9.44552477,215.88,215.79,7.68]
[1758726028406,3.34804003,215.87,215.79,7.68]
[1758726028607,9.44552477,215.88,215.79,7.68]
[1758726028809,3.3480016,215.87,215.8,2.11552477]
[1758726029009,9.44552477,215.88,215.81,7.68]
[1758726029210,3.34785441,215.87,215.81,7.68]
[1758726029509,9.44552477,215.88,215.84,4.1675]
[1758726029701,3.34828727,215.87,215.84,4.1675]
[1758726029901,7.33,215.88,215.84,4.1675]
[1758726030106,10.67828727,215.87,215.84,4.1675]
[1758726030410,7.33,215.87,215.84,4.1675]
[1758726030816,7.33,215.87,215.81,7.68]
[1758726031408,3.34943176,215.86,215.79,7.68]
[1758726031606,9.44552477,215.87,215.79,7.68]
[1758726031806,3.34959513,215.86,215.79,7.68]
[1758726032005,9.44552477,215.87,215.79,7.68]
[1758726032006,3.34959513,215.85,215.83,4.1677]
[1758726032206,3.34959513,215.85,215.79,7.68]
[1758726032207,9.44552477,215.87,215.8,64.8416]
[1758726032403,119.26,215.9,215.8,64.8416]
[1758726032404,3.34997148,215.86,215.84,4.1675]
[1758726032605,3.34997148,215.86,215.81,64.837]
[1758726032606,9.44552477,215.91,215.81,7.68]
[1758726032814,3.34969877,215.9,215.81,9.79552477]
[1758726033118,3.34969877,215.89,215.81,9.79552477]
[1758726033307,3.34969877,215.88,215.86,4.1671]
[1758726033507,3.34969877,215.87,215.86,4.1671]
[1758726033912,3.34969877,215.88,215.86,4.1671]
[1758726034107,3.34969877,215.87,215.86,4.1671]
[1758726034504,2.11552477,215.94,215.89,4.1665]
[1758726034712,10.68148596,215.93,215.86,7.68]
[1758726034915,3.35148596,215.92,215.86,7.68]
[1758726035809,7.33,215.91,215.82,2.11552477]
[1758726036010,5.46701073,215.9,215.83,4.1677]
[1758726036210,5.46701073,215.89,215.83,4.1677]
[1758726036510,5.46701073,215.89,215.81,7.68]
[1758726036511,10.68148596,215.88,215.82,4.1679]
[1758726036813,7.33,215.86,215.82,4.1679]
[1758726037016,3.35148596,215.85,215.82,4.1679]
[1758726037205,3.35620497,215.84,215.83,7.68]
[1758726037617,108.39,215.9,215.84,4.1675]
[1758726037819,7.33,215.88,215.84,4.1675]
[1758726038006,3.35638461,215.87,215.79,2.11552477]
[1758726038212,3.35638461,215.86,215.82,7.68]
[1758726038518,3.35638461,215.85,215.84,11.8475]
[1758726038714,3.35638461,215.85,215.82,7.68]
[1758726038916,3.35638461,215.84,215.79,2.11552477]
[1758726039118,3.35689975,215.83,215.8,7.68]
[1758726039314,7.33,215.87,215.79,9.79552477]
[1758726039518,3.35898867,215.86,215.79,9.79552477]
[1758726039719,3.35898867,215.85,215.79,9.79552477]
[1758726040014,3.35898867,215.84,215.79,2.11552477]
[1758726040216,7.33,215.87,215.8,7.68]
[1758726040217,3.35898867,215.83,215.8,7.68]
[1758726040519,3.35898867,215.82,215.8,7.68]
[1758726040820,3.35898867,215.81,215.8,7.68]
[1758726041024,7.33,215.84,215.76,2.11552477]
[1758726041317,3.35898867,215.83,215.78,66.96342477]
[1758726041508,3.35898867,215.82,215.78,66.96342477]
[1758726041708,3.35898867,215.81,215.8,11.8484]
[1758726041917,12.80451344,215.86,215.8,7.68]